[Event "*** SCC Grand Prix: Titled Tuesday Blitz"]
[Site "Chess.com"]
[Date "2020.06.23"]
[Round "2"]
[White "Kopytkin"]
[Black "attack2mateU"]
[Result "0-1"]
[WhiteElo "2396"]
[BlackElo "2663"]
[TimeControl "180+1"]
[EndTime "10:19:26 PDT"]
[Termination "attack2mateU won on time"]

1. e4 {[%clk 0:03:00.9]} 1... c5 {[%clk 0:02:59.6]} 2. d4 {[%clk 0:03:00.6]}
2... cxd4 {[%clk 0:02:59.3]} 3. c3 {[%clk 0:03:01.1]} 3... Nf6 {[%clk
0:02:59.9]} 4. e5 {[%clk 0:03:00.6]} 4... Nd5 {[%clk 0:03:00.4]} 5. Nf3 {[%clk
0:03:00]} 5... Nc6 {[%clk 0:02:58.5]} 6. Bc4 {[%clk 0:02:44.1]} 6... Nb6 {[%clk
0:02:56.7]} 7. Bb3 {[%clk 0:02:44.2]} 7... d5 {[%clk 0:02:57.1]} 8. exd6 {[%clk
0:02:31.3]} 8... Qxd6 {[%clk 0:02:56.7]} 9. cxd4 {[%clk 0:02:31.5]} 9... Be6
{[%clk 0:02:51]} 10. O-O {[%clk 0:02:20.8]} 10... Bxb3 {[%clk 0:02:50.4]} 11.
Qxb3 {[%clk 0:02:21.3]} 11... e6 {[%clk 0:02:50]} 12. Nc3 {[%clk 0:02:16.8]}
12... Be7 {[%clk 0:02:44.8]} 13. Be3 {[%clk 0:02:06.8]} 13... O-O {[%clk
0:02:44.1]} 14. Rfd1 {[%clk 0:02:06.9]} 14... Rfd8 {[%clk 0:02:40.3]} 15. Rac1
{[%clk 0:01:53.2]} 15... Na5 {[%clk 0:02:29.4]} 16. Qb5 {[%clk 0:01:46]} 16...
Nac4 {[%clk 0:02:27.1]} 17. Ne5 {[%clk 0:01:17.9]} 17... Qb4 {[%clk 0:02:06.8]}
18. Qxb4 {[%clk 0:01:12]} 18... Bxb4 {[%clk 0:02:06.1]} 19. Nxc4 {[%clk
0:01:01.3]} 19... Nxc4 {[%clk 0:02:07]} 20. Na4 {[%clk 0:00:47.3]} 20... b5
{[%clk 0:01:36.9]} 21. Bf4 {[%clk 0:00:44]} 21... Rac8 {[%clk 0:01:32.7]} 22. b3
{[%clk 0:00:39.1]} 22... Ba3 {[%clk 0:01:02.5]} 23. Rc2 {[%clk 0:00:38.3]} 23...
e5 {[%clk 0:00:33.1]} 24. bxc4 {[%clk 0:00:31.3]} 24... exf4 {[%clk 0:00:33.4]}
25. Nb2 {[%clk 0:00:25.4]} 25... Bxb2 {[%clk 0:00:30.9]} 26. Rxb2 {[%clk
0:00:25.7]} 26... bxc4 {[%clk 0:00:28.6]} 27. Rc2 {[%clk 0:00:25.9]} 27... g5
{[%clk 0:00:22.6]} 28. Kf1 {[%clk 0:00:25.7]} 28... Rd5 {[%clk 0:00:21.6]} 29.
Ke2 {[%clk 0:00:20.7]} 29... g4 {[%clk 0:00:21.2]} 30. Rc3 {[%clk 0:00:16.7]}
30... Kg7 {[%clk 0:00:20.6]} 31. g3 {[%clk 0:00:17.1]} 31... f3+ {[%clk
0:00:16]} 32. Ke3 {[%clk 0:00:15.5]} 32... Kg6 {[%clk 0:00:14.3]} 33. Ke4 {[%clk
0:00:12.3]} 33... Ra5 {[%clk 0:00:06.5]} 34. d5 {[%clk 0:00:11.7]} 34... f5+
{[%clk 0:00:06.5]} 35. Kd4 {[%clk 0:00:11.8]} 35... Rxd5+ {[%clk 0:00:05.3]} 36.
Kxd5 {[%clk 0:00:11.4]} 36... Rd8+ {[%clk 0:00:05.7]} 37. Kxc4 {[%clk
0:00:11.8]} 37... Rxd1 {[%clk 0:00:06.3]} 38. Rc2 {[%clk 0:00:11.8]} 38... Rh1
{[%clk 0:00:05.7]} 39. Kd3 {[%clk 0:00:11.4]} 39... Rxh2 {[%clk 0:00:06.2]} 40.
Ke3 {[%clk 0:00:09.4]} 40... Kg5 {[%clk 0:00:04.4]} 41. Rb2 {[%clk 0:00:08.1]}
41... Rh1 {[%clk 0:00:03.3]} 42. a4 {[%clk 0:00:08.1]} 42... Re1+ {[%clk
0:00:03.3]} 43. Kd3 {[%clk 0:00:08.5]} 43... h5 {[%clk 0:00:02.6]} 44. a5 {[%clk
0:00:08.3]} 44... Ra1 {[%clk 0:00:02.6]} 45. Rb5 {[%clk 0:00:07.5]} 45... Ra2
{[%clk 0:00:03]} 46. Ke3 {[%clk 0:00:07.6]} 46... Re2+ {[%clk 0:00:03.6]} 47.
Kd3 {[%clk 0:00:08.1]} 47... Rxf2 {[%clk 0:00:04.5]} 48. Rb7 {[%clk 0:00:07.8]}
48... Ra2 {[%clk 0:00:05]} 49. Rg7+ {[%clk 0:00:07.5]} 49... Kf6 {[%clk
0:00:05.1]} 50. Rc7 {[%clk 0:00:04.7]} 50... f2 {[%clk 0:00:05.7]} 51. Rc1
{[%clk 0:00:04.5]} 51... Rxa5 {[%clk 0:00:06]} 52. Ke3 {[%clk 0:00:04.7]} 52...
Ra2 {[%clk 0:00:06.6]} 53. Kf4 {[%clk 0:00:04.7]} 53... Ra4+ {[%clk 0:00:04.5]}
54. Ke3 {[%clk 0:00:04.4]} 54... Ra2 {[%clk 0:00:04.2]} 55. Kf4 {[%clk
0:00:04.4]} 55... Ke6 {[%clk 0:00:04.9]} 0-1

[Event "*** SCC Grand Prix: Titled Tuesday Blitz"]
[Site "Chess.com"]
[Date "2020.06.23"]
[Round "2"]
[White "manmanlai1"]
[Black "Panterov"]
[Result "1-0"]
[WhiteElo "2409"]
[BlackElo "2155"]
[TimeControl "180+1"]
[EndTime "10:19:31 PDT"]
[Termination "manmanlai1 won on time"]

1. e4 {[%clk 0:03:00.9]} 1... d6 {[%clk 0:02:58.9]} 2. d4 {[%clk 0:03:00.1]}
2... g6 {[%clk 0:02:59.8]} 3. Nf3 {[%clk 0:02:59.2]} 3... Bg7 {[%clk 0:03:00.7]}
4. Bc4 {[%clk 0:02:59.8]} 4... Nf6 {[%clk 0:02:56.9]} 5. Qe2 {[%clk 0:03:00]}
5... O-O {[%clk 0:02:56.3]} 6. e5 {[%clk 0:03:00.4]} 6... dxe5 {[%clk
0:02:48.6]} 7. dxe5 {[%clk 0:03:01.3]} 7... Nd5 {[%clk 0:02:48]} 8. O-O {[%clk
0:02:59.7]} 8... c6 {[%clk 0:02:45.3]} 9. Nbd2 {[%clk 0:02:58.5]} 9... Be6
{[%clk 0:02:36.8]} 10. Bb3 {[%clk 0:02:53.6]} 10... a5 {[%clk 0:02:30.9]} 11. a3
{[%clk 0:02:48.1]} 11... a4 {[%clk 0:02:28.6]} 12. Ba2 {[%clk 0:02:47.3]} 12...
Nf4 {[%clk 0:02:28.1]} 13. Qe4 {[%clk 0:02:45.5]} 13... Bxa2 {[%clk 0:02:28.3]}
14. Rxa2 {[%clk 0:02:46.4]} 14... Ne6 {[%clk 0:02:18.7]} 15. Ra1 {[%clk
0:02:41.3]} 15... Nd7 {[%clk 0:02:17.1]} 16. Re1 {[%clk 0:02:39.7]} 16... Qc7
{[%clk 0:02:16.5]} 17. Nf1 {[%clk 0:02:31.2]} 17... b5 {[%clk 0:02:10.8]} 18. h4
{[%clk 0:02:20.3]} 18... h5 {[%clk 0:02:08.7]} 19. Bf4 {[%clk 0:02:00]} 19...
Ndc5 {[%clk 0:02:03.3]} 20. Qe3 {[%clk 0:01:59.7]} 20... Nxf4 {[%clk 0:02:01.5]}
21. Qxf4 {[%clk 0:01:50.8]} 21... Rad8 {[%clk 0:01:59.8]} 22. Ne3 {[%clk
0:01:46.8]} 22... e6 {[%clk 0:01:56]} 23. g4 {[%clk 0:01:37.4]} 23... hxg4
{[%clk 0:01:47.9]} 24. Nxg4 {[%clk 0:01:38.3]} 24... Rd5 {[%clk 0:01:42.7]} 25.
Kg2 {[%clk 0:01:32.5]} 25... Rfd8 {[%clk 0:01:41.2]} 26. Re2 {[%clk 0:01:14.4]}
26... f5 {[%clk 0:01:28.2]} 27. Nh6+ {[%clk 0:01:01.4]} 27... Bxh6 {[%clk
0:01:26.1]} 28. Qxh6 {[%clk 0:01:00.4]} 28... Qg7 {[%clk 0:01:23.9]} 29. Qf4
{[%clk 0:00:43.1]} 29... R8d7 {[%clk 0:01:10.6]} 30. Rh1 {[%clk 0:00:42.6]}
30... Ne4 {[%clk 0:01:08.5]} 31. Rh3 {[%clk 0:00:17.9]} 31... c5 {[%clk
0:00:57.5]} 32. Ng5 {[%clk 0:00:13.7]} 32... Nxg5 {[%clk 0:00:36.1]} 33. Qxg5
{[%clk 0:00:10.5]} 33... Rxe5 {[%clk 0:00:31.8]} 34. Rxe5 {[%clk 0:00:10.6]}
34... Qxe5 {[%clk 0:00:30.8]} 35. h5 {[%clk 0:00:10.8]} 35... Qe4+ {[%clk
0:00:27.6]} 36. Kh2 {[%clk 0:00:11.1]} 36... Qe5+ {[%clk 0:00:26.1]} 37. Rg3
{[%clk 0:00:11.4]} 37... Rg7 {[%clk 0:00:22.8]} 38. f4 {[%clk 0:00:08.1]} 38...
Qe2+ {[%clk 0:00:19.7]} 39. Kg1 {[%clk 0:00:05.3]} 39... Qxh5 {[%clk 0:00:19.3]}
40. Qd8+ {[%clk 0:00:05.4]} 40... Kh7 {[%clk 0:00:18.6]} 41. Qd3 {[%clk
0:00:03.7]} 41... g5 {[%clk 0:00:15.9]} 42. Rh3 {[%clk 0:00:02.9]} 42... gxf4+
{[%clk 0:00:15.5]} 43. Kf2 {[%clk 0:00:02.6]} 43... Qxh3 {[%clk 0:00:12.3]} 44.
Qxh3+ {[%clk 0:00:03.5]} 44... Kg8 {[%clk 0:00:13.2]} 45. Qf3 {[%clk 0:00:04.4]}
45... Rg4 {[%clk 0:00:10.2]} 46. Qa8+ {[%clk 0:00:05]} 46... Kf7 {[%clk
0:00:09.2]} 47. Qb7+ {[%clk 0:00:05.9]} 47... Kf6 {[%clk 0:00:08.7]} 48. Qxb5
{[%clk 0:00:06.8]} 48... f3 {[%clk 0:00:07.1]} 49. Qxc5 {[%clk 0:00:07.2]} 49...
Rf4 {[%clk 0:00:02.6]} 50. Qf8+ {[%clk 0:00:07.6]} 50... Ke5 {[%clk 0:00:01.7]}
51. Qb8+ {[%clk 0:00:08.2]} 1-0

[Event "*** SCC Grand Prix: Titled Tuesday Blitz"]
[Site "Chess.com"]
[Date "2020.06.23"]
[Round "2"]
[White "petrkostenko"]
[Black "Gordima"]
[Result "0-1"]
[WhiteElo "2501"]
[BlackElo "2741"]
[TimeControl "180+1"]
[EndTime "10:19:34 PDT"]
[Termination "Gordima won on time"]

1. e4 {[%clk 0:03:00.9]} 1... c5 {[%clk 0:02:56.9]} 2. Nf3 {[%clk 0:02:59.7]}
2... e6 {[%clk 0:02:57]} 3. c4 {[%clk 0:02:58.7]} 3... Nc6 {[%clk 0:02:54.1]} 4.
Be2 {[%clk 0:02:55.5]} 4... g6 {[%clk 0:02:51.5]} 5. d4 {[%clk 0:02:52.5]} 5...
d6 {[%clk 0:02:44.9]} 6. d5 {[%clk 0:02:26.4]} 6... Nce7 {[%clk 0:02:37.1]} 7.
Nc3 {[%clk 0:02:24.8]} 7... e5 {[%clk 0:02:24.8]} 8. a3 {[%clk 0:02:11.5]} 8...
f6 {[%clk 0:02:10.9]} 9. b4 {[%clk 0:02:06.8]} 9... b6 {[%clk 0:02:11.3]} 10.
Rb1 {[%clk 0:02:03.7]} 10... Bh6 {[%clk 0:02:10.5]} 11. O-O {[%clk 0:01:59]}
11... Kf8 {[%clk 0:02:05.7]} 12. Ne1 {[%clk 0:01:57.1]} 12... Kg7 {[%clk
0:02:04]} 13. bxc5 {[%clk 0:01:45]} 13... bxc5 {[%clk 0:02:03.5]} 14. Nd3 {[%clk
0:01:45.4]} 14... Bxc1 {[%clk 0:02:01.4]} 15. Qxc1 {[%clk 0:01:44.8]} 15... Nh6
{[%clk 0:02:01.5]} 16. f4 {[%clk 0:01:33.9]} 16... Nf7 {[%clk 0:01:48.2]} 17.
fxe5 {[%clk 0:01:25.9]} 17... fxe5 {[%clk 0:01:47.7]} 18. Qe3 {[%clk 0:01:18.6]}
18... Rf8 {[%clk 0:01:39.6]} 19. Rf2 {[%clk 0:01:11.2]} 19... Bd7 {[%clk
0:01:20.4]} 20. Rbf1 {[%clk 0:01:06.2]} 20... Ng8 {[%clk 0:01:18.5]} 21. Nb5
{[%clk 0:00:18.5]} 21... Bxb5 {[%clk 0:01:01.7]} 22. cxb5 {[%clk 0:00:18.6]}
22... Qa5 {[%clk 0:01:02.1]} 23. Nb2 {[%clk 0:00:18.6]} 23... Qc7 {[%clk
0:00:33.8]} 24. Nc4 {[%clk 0:00:18.7]} 24... Nfh6 {[%clk 0:00:28.5]} 25. a4
{[%clk 0:00:18.3]} 25... Rxf2 {[%clk 0:00:21.5]} 26. Qxf2 {[%clk 0:00:17.5]}
26... Nf7 {[%clk 0:00:13.9]} 27. a5 {[%clk 0:00:17.3]} 27... Qe7 {[%clk
0:00:10.3]} 28. Qxf7+ {[%clk 0:00:16.1]} 28... Qxf7 {[%clk 0:00:09]} 29. Rxf7+
{[%clk 0:00:16.7]} 29... Kxf7 {[%clk 0:00:09.9]} 30. Nxd6+ {[%clk 0:00:17.2]}
30... Ke7 {[%clk 0:00:09.2]} 31. Nc4 {[%clk 0:00:17.5]} 31... Nf6 {[%clk
0:00:09.8]} 32. Bd3 {[%clk 0:00:18.1]} 32... Nd7 {[%clk 0:00:08.2]} 33. Kf2
{[%clk 0:00:18.4]} 33... Rb8 {[%clk 0:00:08.3]} 34. Ke3 {[%clk 0:00:18.6]} 34...
Rxb5 {[%clk 0:00:07.6]} 35. Nxe5 {[%clk 0:00:18.9]} 35... Rb3 {[%clk 0:00:03.9]}
36. Nc6+ {[%clk 0:00:19]} 36... Kd6 {[%clk 0:00:03.7]} 37. Kd2 {[%clk
0:00:19.4]} 37... Ne5 {[%clk 0:00:03.1]} 38. Bc2 {[%clk 0:00:19.3]} 38... Ra3
{[%clk 0:00:02.3]} 39. Nxa7 {[%clk 0:00:18.1]} 39... Rxa5 {[%clk 0:00:02.5]} 40.
Nc8+ {[%clk 0:00:18.4]} 40... Kc7 {[%clk 0:00:02.7]} 41. Ne7 {[%clk 0:00:18.7]}
41... Nc4+ {[%clk 0:00:02.9]} 42. Kc3 {[%clk 0:00:18.4]} 42... Ne5 {[%clk
0:00:03.8]} 43. Ng8 {[%clk 0:00:17.8]} 43... Kd6 {[%clk 0:00:03.8]} 44. Nf6
{[%clk 0:00:17.7]} 44... h5 {[%clk 0:00:04.2]} 45. h4 {[%clk 0:00:17.5]} 45...
Ra3+ {[%clk 0:00:04.3]} 46. Kd2 {[%clk 0:00:16.8]} 46... Rg3 {[%clk 0:00:04.8]}
47. Ne8+ {[%clk 0:00:15.7]} 47... Ke7 {[%clk 0:00:04.5]} 48. Nc7 {[%clk
0:00:15.2]} 48... Rxg2+ {[%clk 0:00:05.4]} 49. Kc3 {[%clk 0:00:15]} 49... Rg3+
{[%clk 0:00:05.9]} 50. Kd2 {[%clk 0:00:14.5]} 50... g5 {[%clk 0:00:06.1]} 51.
hxg5 {[%clk 0:00:13]} 51... h4 {[%clk 0:00:06.5]} 52. Nb5 {[%clk 0:00:12.9]}
52... h3 {[%clk 0:00:06.7]} 53. d6+ {[%clk 0:00:13.3]} 53... Kd7 {[%clk
0:00:06.3]} 54. Ba4 {[%clk 0:00:13.2]} 54... h2 {[%clk 0:00:06.3]} 55. Nc3+
{[%clk 0:00:13.3]} 55... Kxd6 {[%clk 0:00:05.9]} 56. Ne2 {[%clk 0:00:14]} 56...
Rg2 {[%clk 0:00:06]} 0-1

[Event "*** SCC Grand Prix: Titled Tuesday Blitz"]
[Site "Chess.com"]
[Date "2020.06.23"]
[Round "2"]
[White "Salem-AR"]
[Black "BogdanBelyakov89"]
[Result "1/2-1/2"]
[WhiteElo "2918"]
[BlackElo "2590"]
[TimeControl "180+1"]
[EndTime "10:19:36 PDT"]
[Termination "Game drawn by repetition"]

1. d4 {[%clk 0:03:00.9]} 1... Nf6 {[%clk 0:02:59.1]} 2. c4 {[%clk 0:03:01.6]}
2... g6 {[%clk 0:02:59.1]} 3. g3 {[%clk 0:03:01]} 3... Bg7 {[%clk 0:02:58.8]} 4.
Bg2 {[%clk 0:03:01.4]} 4... O-O {[%clk 0:02:58.8]} 5. Nc3 {[%clk 0:03:02.1]}
5... d6 {[%clk 0:02:58.8]} 6. Nf3 {[%clk 0:03:02.1]} 6... Nc6 {[%clk 0:02:58.9]}
7. O-O {[%clk 0:03:02.6]} 7... a6 {[%clk 0:02:59]} 8. b3 {[%clk 0:03:00.6]} 8...
Rb8 {[%clk 0:02:58.2]} 9. d5 {[%clk 0:03:00.9]} 9... Na5 {[%clk 0:02:57.7]} 10.
Bg5 {[%clk 0:03:01]} 10... c5 {[%clk 0:02:56.9]} 11. dxc6 {[%clk 0:03:01.1]}
11... Nxc6 {[%clk 0:02:56.9]} 12. Rc1 {[%clk 0:03:00.7]} 12... h6 {[%clk
0:02:56.6]} 13. Bd2 {[%clk 0:02:59]} 13... d5 {[%clk 0:02:55]} 14. cxd5 {[%clk
0:02:50.6]} 14... Nxd5 {[%clk 0:02:54.7]} 15. Nxd5 {[%clk 0:02:42.3]} 15... Qxd5
{[%clk 0:02:54]} 16. Bf4 {[%clk 0:02:41.1]} 16... Qxd1 {[%clk 0:02:47.4]} 17.
Rfxd1 {[%clk 0:02:42]} 17... e5 {[%clk 0:02:44]} 18. Be3 {[%clk 0:02:42.4]}
18... Bg4 {[%clk 0:02:36.4]} 19. h3 {[%clk 0:02:35.9]} 19... Bxf3 {[%clk
0:02:25.2]} 20. exf3 {[%clk 0:02:26.2]} 20... Nd4 {[%clk 0:02:25.7]} 21. Kf1
{[%clk 0:02:21.7]} 21... Rfd8 {[%clk 0:01:58.8]} 22. f4 {[%clk 0:02:20.7]} 22...
Nf5 {[%clk 0:01:42]} 23. Ba7 {[%clk 0:01:35.5]} 23... Rxd1+ {[%clk 0:01:25.7]}
24. Rxd1 {[%clk 0:01:36.4]} 24... Rc8 {[%clk 0:01:26]} 25. fxe5 {[%clk
0:00:41.5]} 25... Bxe5 {[%clk 0:01:03.5]} 26. Bxb7 {[%clk 0:00:40.1]} 26... Rc2
{[%clk 0:00:45.7]} 27. a4 {[%clk 0:00:39.3]} 27... a5 {[%clk 0:00:39.8]} 28. Be4
{[%clk 0:00:33.6]} 28... Rb2 {[%clk 0:00:33.3]} 29. Rd5 {[%clk 0:00:17.4]} 29...
Bc3 {[%clk 0:00:28.5]} 30. Bxf5 {[%clk 0:00:15]} 30... gxf5 {[%clk 0:00:28.2]}
31. Bb6 {[%clk 0:00:14.1]} 31... Rxb3 {[%clk 0:00:26.5]} 32. Bxa5 {[%clk
0:00:13.9]} 32... Bxa5 {[%clk 0:00:26.9]} 33. Rxa5 {[%clk 0:00:14.8]} 33... f4
{[%clk 0:00:27.8]} 34. gxf4 {[%clk 0:00:08.4]} 34... Rxh3 {[%clk 0:00:26.7]} 35.
Ra7 {[%clk 0:00:06]} 35... Ra3 {[%clk 0:00:26.4]} 36. a5 {[%clk 0:00:06.2]}
36... Kg7 {[%clk 0:00:26.7]} 37. a6 {[%clk 0:00:05.8]} 37... Kg6 {[%clk
0:00:25.1]} 38. Kg2 {[%clk 0:00:05.5]} 38... h5 {[%clk 0:00:24.8]} 39. Ra8
{[%clk 0:00:04.7]} 39... h4 {[%clk 0:00:24.1]} 40. a7 {[%clk 0:00:03.6]} 40...
Kf5 {[%clk 0:00:22.4]} 41. Rh8 {[%clk 0:00:01.6]} 41... Rxa7 {[%clk 0:00:20.3]}
42. Rxh4 {[%clk 0:00:02.3]} 42... f6 {[%clk 0:00:20]} 43. Kg3 {[%clk 0:00:02.6]}
43... Ra3+ {[%clk 0:00:18.8]} 44. f3 {[%clk 0:00:02.7]} 44... Ra4 {[%clk
0:00:18.9]} 45. Rh5+ {[%clk 0:00:03.2]} 45... Kg6 {[%clk 0:00:19.3]} 46. Rb5
{[%clk 0:00:04.1]} 46... Rc4 {[%clk 0:00:19.2]} 47. Kg4 {[%clk 0:00:04.4]} 47...
Ra4 {[%clk 0:00:19.2]} 48. Rc5 {[%clk 0:00:04.8]} 48... Rb4 {[%clk 0:00:19.4]}
49. Ra5 {[%clk 0:00:05.2]} 49... Rc4 {[%clk 0:00:19.7]} 50. Kg3 {[%clk
0:00:05.7]} 50... Rd4 {[%clk 0:00:19.8]} 51. Rc5 {[%clk 0:00:05.9]} 51... Rb4
{[%clk 0:00:19.9]} 52. Rc8 {[%clk 0:00:06.2]} 52... Ra4 {[%clk 0:00:19.9]} 53.
Rb8 {[%clk 0:00:06.3]} 53... Kf5 {[%clk 0:00:19.5]} 54. Rb6 {[%clk 0:00:06.6]}
54... Kg6 {[%clk 0:00:19.7]} 55. Rb5 {[%clk 0:00:07.1]} 55... Rc4 {[%clk
0:00:19.2]} 56. Rb1 {[%clk 0:00:07.5]} 56... Rb4 {[%clk 0:00:19.3]} 57. Rh1
{[%clk 0:00:08.2]} 57... Kf5 {[%clk 0:00:17.6]} 58. Rh5+ {[%clk 0:00:08.2]}
58... Kg6 {[%clk 0:00:17.8]} 59. Rh8 {[%clk 0:00:08.9]} 59... Ra4 {[%clk
0:00:17.9]} 60. Rh4 {[%clk 0:00:09.3]} 60... Kf5 {[%clk 0:00:17.9]} 61. Rg4
{[%clk 0:00:09.3]} 61... Rb4 {[%clk 0:00:17.3]} 62. Rh4 {[%clk 0:00:09.7]} 62...
Ra4 {[%clk 0:00:17.7]} 1/2-1/2

[Event "*** SCC Grand Prix: Titled Tuesday Blitz"]
[Site "Chess.com"]
[Date "2020.06.23"]
[Round "2"]
[White "BigAl"]
[Black "OnePeculiarConundrum"]
[Result "0-1"]
[WhiteElo "2443"]
[BlackElo "2282"]
[TimeControl "180+1"]
[EndTime "10:19:37 PDT"]
[Termination "OnePeculiarConundrum won by resignation"]

1. e4 {[%clk 0:03:00.9]} 1... c5 {[%clk 0:02:59.8]} 2. Nc3 {[%clk 0:03:00.3]}
2... d6 {[%clk 0:02:59.1]} 3. f4 {[%clk 0:03:00]} 3... Nf6 {[%clk 0:02:58.5]} 4.
Nf3 {[%clk 0:03:00.9]} 4... e6 {[%clk 0:02:58.5]} 5. Bb5+ {[%clk 0:03:00.4]}
5... Bd7 {[%clk 0:02:58.3]} 6. a4 {[%clk 0:03:00.1]} 6... Nc6 {[%clk 0:02:57.8]}
7. O-O {[%clk 0:03:00]} 7... a6 {[%clk 0:02:57.7]} 8. Bc4 {[%clk 0:02:59]} 8...
Be7 {[%clk 0:02:52.8]} 9. Ba2 {[%clk 0:02:58]} 9... Nb4 {[%clk 0:02:52.1]} 10.
Bb1 {[%clk 0:02:56.8]} 10... b5 {[%clk 0:02:51.3]} 11. d3 {[%clk 0:02:56.1]}
11... O-O {[%clk 0:02:49.8]} 12. Qe1 {[%clk 0:02:46.1]} 12... Qb6 {[%clk
0:02:38]} 13. Kh1 {[%clk 0:02:44.8]} 13... Bc6 {[%clk 0:02:33.4]} 14. Qg3 {[%clk
0:02:31.6]} 14... Kh8 {[%clk 0:02:31.4]} 15. Qh3 {[%clk 0:02:31.3]} 15... Bb7
{[%clk 0:02:13.7]} 16. Nd1 {[%clk 0:02:24.4]} 16... c4 {[%clk 0:02:07.1]} 17.
Be3 {[%clk 0:02:16.4]} 17... Qc7 {[%clk 0:02:05.7]} 18. Nf2 {[%clk 0:02:09.7]}
18... Rac8 {[%clk 0:01:57.1]} 19. Ng5 {[%clk 0:02:04.4]} 19... h6 {[%clk
0:01:49]} 20. axb5 {[%clk 0:01:58.8]} 20... axb5 {[%clk 0:01:48.4]} 21. dxc4
{[%clk 0:01:53]} 21... Qxc4 {[%clk 0:01:43.2]} 22. Rc1 {[%clk 0:01:35.2]} 22...
Kg8 {[%clk 0:01:30.4]} 23. c3 {[%clk 0:01:29.3]} 23... hxg5 {[%clk 0:01:17.7]}
24. e5 {[%clk 0:01:28.2]} 24... dxe5 {[%clk 0:01:10.8]} 25. fxe5 {[%clk
0:01:23.3]} 25... Ne4 {[%clk 0:01:09.7]} 26. Bxe4 {[%clk 0:01:18]} 26... Bxe4
{[%clk 0:01:02.9]} 27. cxb4 {[%clk 0:01:18.2]} 27... Qxb4 {[%clk 0:01:00.5]} 28.
Re1 {[%clk 0:01:13.8]} 28... Bg6 {[%clk 0:00:59.3]} 29. Qg3 {[%clk 0:00:54.2]}
29... Qh4 {[%clk 0:00:58]} 30. Qxh4 {[%clk 0:00:47.9]} 30... gxh4 {[%clk
0:00:58.9]} 31. h3 {[%clk 0:00:47.8]} 31... Rc2 {[%clk 0:00:58.5]} 32. Ra7
{[%clk 0:00:47.8]} 32... Bb4 {[%clk 0:00:57.6]} 33. Rd1 {[%clk 0:00:44.9]} 33...
Rxb2 {[%clk 0:00:52.6]} 34. Ng4 {[%clk 0:00:45.1]} 34... Rc8 {[%clk 0:00:50.7]}
35. Bg5 {[%clk 0:00:38.7]} 35... Bf8 {[%clk 0:00:46.1]} 36. Bxh4 {[%clk
0:00:38.5]} 36... b4 {[%clk 0:00:45.1]} 37. Rb7 {[%clk 0:00:33.4]} 37... Rb1
{[%clk 0:00:44.6]} 38. Rxb1 {[%clk 0:00:32.8]} 38... Bxb1 {[%clk 0:00:45.5]} 39.
Kh2 {[%clk 0:00:32.9]} 39... Bc2 {[%clk 0:00:45.2]} 40. Ne3 {[%clk 0:00:32.3]}
40... b3 {[%clk 0:00:44.3]} 41. Be1 {[%clk 0:00:31.6]} 41... Bc5 {[%clk
0:00:40]} 42. Nc4 {[%clk 0:00:26.5]} 42... Bd4 {[%clk 0:00:38.8]} 43. Nd6 {[%clk
0:00:25.1]} 43... Bxe5+ {[%clk 0:00:39.1]} 44. Bg3 {[%clk 0:00:24.4]} 44...
Bxg3+ {[%clk 0:00:37.9]} 45. Kxg3 {[%clk 0:00:25.3]} 45... Rc3+ {[%clk
0:00:34.7]} 46. Kh4 {[%clk 0:00:24.9]} 46... Bg6 {[%clk 0:00:32.9]} 47. g4
{[%clk 0:00:23.9]} 47... Rd3 {[%clk 0:00:30.7]} 48. Nc8 {[%clk 0:00:22]} 48...
Rc3 {[%clk 0:00:27.4]} 49. Ne7+ {[%clk 0:00:22.2]} 49... Kh7 {[%clk 0:00:27.6]}
50. Rb8 {[%clk 0:00:22.8]} 50... Bc2 {[%clk 0:00:25.5]} 51. g5 {[%clk 0:00:22]}
51... Rc4+ {[%clk 0:00:22.5]} 52. Kg3 {[%clk 0:00:22.4]} 52... Rc5 {[%clk
0:00:21.8]} 53. h4 {[%clk 0:00:22.3]} 53... Rc3+ {[%clk 0:00:21.9]} 54. Kg4
{[%clk 0:00:21.8]} 54... Rc7 {[%clk 0:00:22.4]} 55. Ng8 {[%clk 0:00:18.5]} 55...
b2 {[%clk 0:00:21.4]} 56. Rxb2 {[%clk 0:00:16.4]} 56... Kxg8 {[%clk 0:00:21.7]}
57. h5 {[%clk 0:00:13.4]} 57... Bf5+ {[%clk 0:00:22]} 58. Kf4 {[%clk 0:00:13.9]}
58... Rc4+ {[%clk 0:00:22.3]} 59. Ke5 {[%clk 0:00:14.2]} 59... Re4+ {[%clk
0:00:21.8]} 60. Kd6 {[%clk 0:00:14.5]} 60... Rh4 {[%clk 0:00:22.1]} 61. g6
{[%clk 0:00:12.7]} 61... fxg6 {[%clk 0:00:22.1]} 62. Ke7 {[%clk 0:00:13.1]}
62... gxh5 {[%clk 0:00:21.5]} 63. Rb8+ {[%clk 0:00:13.8]} 63... Kh7 {[%clk
0:00:21.4]} 64. Kf7 {[%clk 0:00:14.7]} 64... Rg4 {[%clk 0:00:21.2]} 65. Rg8
{[%clk 0:00:14.8]} 65... h4 {[%clk 0:00:20.4]} 66. Rc8 {[%clk 0:00:15.2]} 66...
h3 {[%clk 0:00:20.8]} 67. Rc3 {[%clk 0:00:15.3]} 67... Rh4 {[%clk 0:00:21.1]}
68. Rg3 {[%clk 0:00:13.9]} 68... Bg4 {[%clk 0:00:21.4]} 69. Rc3 {[%clk
0:00:11.6]} 69... h2 {[%clk 0:00:21.8]} 70. Rc8 {[%clk 0:00:09.5]} 70... Bh5+
{[%clk 0:00:21.9]} 71. Ke7 {[%clk 0:00:08.9]} 71... h1=Q {[%clk 0:00:22.2]} 72.
Rc5 {[%clk 0:00:09.1]} 72... Qb7+ {[%clk 0:00:22.2]} 0-1